[Event "November 21 Late 2023"]
[Site "https://www.chess.com"]
[Date "2023.11.21"]
[Round "1"]
[White "Yeletsky, Ivan"]
[Black "liwadas82"]
[Result "1/2-1/2"]
[Board "45"]
[TimeControl "180+1"]
[WhiteFideId "24180327"]
[WhiteElo "2358"]
[BlackElo "2443"]
[WhiteTeam "RUS"]
[WhiteClock "0:00:06"]
[BlackClock "0:00:04"]

1. e4 {[%clk 0:03:00]}  e5 {[%clk 0:02:59]} 2. Nf3 {[%clk 0:02:59]}  Nc6 {[%clk 0:02:59]} 3. d4 {[%clk 0:02:59]}  exd4 {[%clk 0:02:59]} 4. c3 {[%clk 0:02:59]}  d5 {[%clk 0:02:58]} 5. exd5 {[%clk 0:02:58]}  Qxd5 {[%clk 0:02:59]} 6. cxd4 {[%clk 0:02:58]}  Bb4+ {[%clk 0:02:58]} 7. Nc3 {[%clk 0:02:58]}  Nf6 {[%clk 0:02:58]} 8. Be2 {[%clk 0:02:56]}  Ne4 {[%clk 0:02:48]} 9. O-O {[%clk 0:02:55]}  Bxc3 {[%clk 0:02:40]} 10. bxc3 {[%clk 0:02:56]}  Nxc3 {[%clk 0:02:40]} 11. Qc2 {[%clk 0:02:55]}  Nxe2+ {[%clk 0:02:40]} 12. Qxe2+ {[%clk 0:02:55]}  Be6 {[%clk 0:02:41]} 13. Ba3 {[%clk 0:02:43]}  O-O-O {[%clk 0:02:41]} 14. Rab1 {[%clk 0:02:39]}  Bg4 {[%clk 0:02:37]} 15. Qb2 {[%clk 0:02:38]}  Bxf3 {[%clk 0:02:26]} 16. Qxb7+ {[%clk 0:02:37]}  Kd7 {[%clk 0:02:25]} 17. Rb5 {[%clk 0:02:18]}  Qe4 {[%clk 0:01:44]} 18. gxf3 {[%clk 0:01:56]}  Qxf3 {[%clk 0:01:44]} 19. Rb3 {[%clk 0:01:46]}  Qd5 {[%clk 0:01:36]} 20. Rc1 {[%clk 0:01:34]}  Rb8 {[%clk 0:01:31]} 21. Qa6 {[%clk 0:01:33]}  Rxb3 {[%clk 0:01:26]} 22. axb3 {[%clk 0:01:34]}  Nxd4 {[%clk 0:01:25]} 23. Qa4+ {[%clk 0:01:22]}  Ke6 {[%clk 0:00:52]} 24. Rc5 {[%clk 0:01:08]}  Qe4 {[%clk 0:00:19]} 25. Qc4+ {[%clk 0:00:19]}  Kf6 {[%clk 0:00:20]} 26. Bb2 {[%clk 0:00:05]}  Qb1+ {[%clk 0:00:15]} 27. Bc1 {[%clk 0:00:02]}  Qxc1+ {[%clk 0:00:12]} 28. Qxc1 {[%clk 0:00:02]}  Ne2+ {[%clk 0:00:12]} 29. Kg2 {[%clk 0:00:02]}  Nxc1 {[%clk 0:00:13]} 30. Rxc1 {[%clk 0:00:03]}  Rb8 {[%clk 0:00:07]} 31. Rxc7 {[%clk 0:00:03]}  a5 {[%clk 0:00:08]} 32. Rc5 {[%clk 0:00:03]}  Rxb3 {[%clk 0:00:07]} 33. Rxa5 {[%clk 0:00:04]}  g5 {[%clk 0:00:07]} 34. Ra6+ {[%clk 0:00:04]}  Kf5 {[%clk 0:00:07]} 35. Rh6 {[%clk 0:00:04]}  f6 {[%clk 0:00:05]} 36. Rxh7 {[%clk 0:00:04]}  Ra3 {[%clk 0:00:05]} 37. h4 {[%clk 0:00:04]}  g4 {[%clk 0:00:03]} 38. Rh5+ {[%clk 0:00:04]}  Kg6 {[%clk 0:00:03]} 39. Rc5 {[%clk 0:00:04]}  f5 {[%clk 0:00:02]} 40. Re5 {[%clk 0:00:03]}  Rb3 {[%clk 0:00:02]} 41. Re6+ {[%clk 0:00:03]}  Kf7 {[%clk 0:00:02]} 42. Rh6 {[%clk 0:00:04]}  Kg7 {[%clk 0:00:01]} 43. Rd6 {[%clk 0:00:03]}  Kf7 {[%clk 0:00:02]} 44. h5 {[%clk 0:00:04]}  Kg7 {[%clk 0:00:02]} 45. Rg6+ {[%clk 0:00:04]}  Kf7 {[%clk 0:00:01]} 46. Ra6 {[%clk 0:00:04]}  Kg7 {[%clk 0:00:02]} 47. h6+ {[%clk 0:00:05]}  Kh7 {[%clk 0:00:01]} 48. Rf6 {[%clk 0:00:05]}  Kh8 {[%clk 0:00:01]} 49. Rxf5 {[%clk 0:00:05]}  Kh7 {[%clk 0:00:02]} 50. Rf6 {[%clk 0:00:06]}  Ra3 {[%clk 0:00:02]} 51. Rd6 {[%clk 0:00:05]}  Rb3 {[%clk 0:00:02]} 52. Re6 {[%clk 0:00:04]}  Ra3 {[%clk 0:00:02]} 53. Rf6 {[%clk 0:00:05]}  Rb3 {[%clk 0:00:03]} 54. Rf4 {[%clk 0:00:05]}  Ra3 {[%clk 0:00:03]} 55. Rxg4 {[%clk 0:00:05]}  Kxh6 {[%clk 0:00:03]} 56. f4 {[%clk 0:00:05]}  Kh5 {[%clk 0:00:03]} 57. Rg8 {[%clk 0:00:04]}  Rb3 {[%clk 0:00:03]} 58. Kf2 {[%clk 0:00:04]}  Ra3 {[%clk 0:00:03]} 59. Ke2 {[%clk 0:00:05]}  Rb3 {[%clk 0:00:03]} 60. Rg7 {[%clk 0:00:05]}  Ra3 {[%clk 0:00:04]} 61. Rg1 {[%clk 0:00:05]}  Rb3 {[%clk 0:00:04]} 62. Kf2 {[%clk 0:00:05]}  Ra3 {[%clk 0:00:04]} 63. Rg5+ {[%clk 0:00:05]}  Kh6 {[%clk 0:00:03]} 64. Kg2 {[%clk 0:00:05]}  Rb3 {[%clk 0:00:03]} 65. Rg4 {[%clk 0:00:06]}  Ra3 {[%clk 0:00:03]} 66. Kf2 {[%clk 0:00:06]}  Rb3 {[%clk 0:00:03]} 67. Ke2 {[%clk 0:00:06]}  Ra3 {[%clk 0:00:04]} 68. f5 {[%clk 0:00:07]}  Rb3 {[%clk 0:00:04]} 69. f6 {[%clk 0:00:05]}  Rb6 {[%clk 0:00:03]} 70. Rf4 {[%clk 0:00:04]}  Rb7 {[%clk 0:00:04]} 71. Ke3 {[%clk 0:00:04]}  Kg6 {[%clk 0:00:03]} 72. Ke4 {[%clk 0:00:04]}  Rb4+ {[%clk 0:00:04]} 73. Ke5 {[%clk 0:00:05]}  Rxf4 {[%clk 0:00:04]} 74. Kxf4 {[%clk 0:00:06]}  Kxf6 {[%clk 0:00:04]} 1/2-1/2

[Event "November 21 Late 2023"]
[Site "https://www.chess.com"]
[Date "2023.11.21"]
[Round "1"]
[White "Kovalevsky, Stanislav"]
[Black "Beerdsen, Thomas"]
[Result "0-1"]
[Board "46"]
[TimeControl "180+1"]
[WhiteFideId "13508598"]
[BlackFideId "1030108"]
[WhiteElo "2092"]
[BlackElo "2550"]
[WhiteTeam "FID"]
[BlackTeam "NED"]
[WhiteClock "0:00:07"]
[BlackClock "0:01:51"]

1. e4 {[%clk 0:02:57]}  e5 {[%clk 0:03:00]} 2. Nf3 {[%clk 0:02:57]}  Nc6 {[%clk 0:03:00]} 3. Bb5 {[%clk 0:02:57]}  f5 {[%clk 0:03:01]} 4. exf5 {[%clk 0:02:43]}  e4 {[%clk 0:03:01]} 5. Bxc6 {[%clk 0:02:38]}  dxc6 {[%clk 0:03:02]} 6. Qe2 {[%clk 0:02:30]}  Qe7 {[%clk 0:02:45]} 7. Nd4 {[%clk 0:02:24]}  Qe5 {[%clk 0:02:43]} 8. c3 {[%clk 0:01:53]}  Bxf5 {[%clk 0:02:31]} 9. Nxf5 {[%clk 0:01:49]}  Qxf5 {[%clk 0:02:32]} 10. d3 {[%clk 0:01:48]}  Nf6 {[%clk 0:02:26]} 11. dxe4 {[%clk 0:01:45]}  Qxe4 {[%clk 0:02:26]} 12. Qxe4+ {[%clk 0:01:44]}  Nxe4 {[%clk 0:02:26]} 13. O-O {[%clk 0:01:42]}  O-O-O {[%clk 0:02:27]} 14. Re1 {[%clk 0:01:40]}  Bc5 {[%clk 0:02:27]} 15. Be3 {[%clk 0:01:35]}  Bxe3 {[%clk 0:02:27]} 16. fxe3 {[%clk 0:01:35]}  b5 {[%clk 0:02:18]} 17. a4 {[%clk 0:01:24]}  Kb7 {[%clk 0:02:18]} 18. axb5 {[%clk 0:01:20]}  cxb5 {[%clk 0:02:18]} 19. Na3 {[%clk 0:01:12]}  a6 {[%clk 0:02:19]} 20. Rad1 {[%clk 0:01:11]}  c5 {[%clk 0:02:20]} 21. Nc2 {[%clk 0:01:08]}  Kc6 {[%clk 0:02:17]} 22. g3 {[%clk 0:00:56]}  a5 {[%clk 0:02:15]} 23. Kg2 {[%clk 0:00:54]}  Rhf8 {[%clk 0:02:12]} 24. Rxd8 {[%clk 0:00:47]}  Rxd8 {[%clk 0:02:13]} 25. Kf3 {[%clk 0:00:43]}  Nd2+ {[%clk 0:02:10]} 26. Kf4 {[%clk 0:00:41]}  Rf8+ {[%clk 0:02:09]} 27. Kg4 {[%clk 0:00:36]}  Nc4 {[%clk 0:02:08]} 28. Rb1 {[%clk 0:00:17]}  Rf2 {[%clk 0:02:07]} 29. Na3 {[%clk 0:00:15]}  Nxe3+ {[%clk 0:02:07]} 30. Kg5 {[%clk 0:00:14]}  Rxh2 {[%clk 0:02:02]} 31. b4 {[%clk 0:00:14]}  Ra2 {[%clk 0:02:00]} 32. Nxb5 {[%clk 0:00:14]}  Kxb5 {[%clk 0:02:00]} 33. bxa5+ {[%clk 0:00:15]}  Kxa5 {[%clk 0:02:00]} 34. Rb7 {[%clk 0:00:15]}  Rg2 {[%clk 0:01:59]} 35. Kf4 {[%clk 0:00:14]}  Nf1 {[%clk 0:01:48]} 36. Rxg7 {[%clk 0:00:13]}  Rxg3 {[%clk 0:01:48]} 37. Rxh7 {[%clk 0:00:12]}  Rxc3 {[%clk 0:01:48]} 38. Ke4 {[%clk 0:00:12]}  Kb5 {[%clk 0:01:48]} 39. Kd5 {[%clk 0:00:11]}  Ne3+ {[%clk 0:01:47]} 40. Ke4 {[%clk 0:00:11]}  Nc4 {[%clk 0:01:48]} 41. Rb7+ {[%clk 0:00:12]}  Nb6 {[%clk 0:01:48]} 42. Rb8 {[%clk 0:00:11]}  Rc1 {[%clk 0:01:48]} 43. Ke3 {[%clk 0:00:11]}  Rd1 {[%clk 0:01:49]} 44. Ke2 {[%clk 0:00:11]}  Rd7 {[%clk 0:01:49]} 45. Re8 {[%clk 0:00:11]}  c4 {[%clk 0:01:50]} 46. Re5+ {[%clk 0:00:11]}  Kb4 {[%clk 0:01:51]} 47. Re4 {[%clk 0:00:11]}  Kb3 {[%clk 0:01:51]} 48. Re6 {[%clk 0:00:09]}  Na4 {[%clk 0:01:52]} 49. Re7 {[%clk 0:00:08]}  Nc3+ {[%clk 0:01:51]} 50. Ke1 {[%clk 0:00:07]}  Rxe7+ {[%clk 0:01:51]} 0-1

[Event "November 21 Late 2023"]
[Site "https://www.chess.com"]
[Date "2023.11.21"]
[Round "1"]
[White "Mitrabha, Guha"]
[Black "Jimenez Ruano, Adrian"]
[Result "1-0"]
[Board "47"]
[TimeControl "180+1"]
[WhiteFideId "5057000"]
[BlackFideId "22276050"]
[WhiteElo "2512"]
[BlackElo "2215"]
[WhiteTeam "IND"]
[BlackTeam "ESP"]
[WhiteClock "0:01:16"]
[BlackClock "0:00:00"]

1. Nf3 {[%clk 0:03:00]}  Nf6 {[%clk 0:02:57]} 2. b3 {[%clk 0:02:58]}  c5 {[%clk 0:02:55]} 3. Bb2 {[%clk 0:02:53]}  d5 {[%clk 0:02:55]} 4. e3 {[%clk 0:02:47]}  a6 {[%clk 0:02:56]} 5. d4 {[%clk 0:02:47]}  Nc6 {[%clk 0:02:52]} 6. dxc5 {[%clk 0:02:46]}  e6 {[%clk 0:02:49]} 7. a3 {[%clk 0:02:46]}  Bxc5 {[%clk 0:02:49]} 8. b4 {[%clk 0:02:46]}  Be7 {[%clk 0:02:48]} 9. c4 {[%clk 0:02:45]}  O-O {[%clk 0:02:48]} 10. Nbd2 {[%clk 0:02:42]}  Qc7 {[%clk 0:02:34]} 11. Rc1 {[%clk 0:02:38]}  Rd8 {[%clk 0:02:30]} 12. Qb3 {[%clk 0:02:33]}  dxc4 {[%clk 0:01:41]} 13. Bxc4 {[%clk 0:02:31]}  Ng4 {[%clk 0:01:29]} 14. Be2 {[%clk 0:02:27]}  Bf6 {[%clk 0:01:14]} 15. h3 {[%clk 0:02:14]}  Bxb2 {[%clk 0:01:10]} 16. Qxb2 {[%clk 0:02:15]}  Nge5 {[%clk 0:01:05]} 17. Nxe5 {[%clk 0:02:13]}  Qxe5 {[%clk 0:01:04]} 18. Qxe5 {[%clk 0:02:08]}  Nxe5 {[%clk 0:01:05]} 19. Rc7 {[%clk 0:02:07]}  Bd7 {[%clk 0:01:01]} 20. f4 {[%clk 0:02:03]}  Ng6 {[%clk 0:00:37]} 21. Rxb7 {[%clk 0:01:49]}  Bc6 {[%clk 0:00:36]} 22. Rc7 {[%clk 0:01:49]}  Bxg2 {[%clk 0:00:29]} 23. Rh2 {[%clk 0:01:48]}  Bd5 {[%clk 0:00:21]} 24. e4 {[%clk 0:01:45]}  Ba2 {[%clk 0:00:15]} 25. Rc2 {[%clk 0:01:44]}  Rxd2 {[%clk 0:00:04]} 26. Rxd2 {[%clk 0:01:42]}  Bb3 {[%clk 0:00:04]} 27. f5 {[%clk 0:01:33]}  Ne5 {[%clk 0:00:03]} 28. Kf2 {[%clk 0:01:30]}  Bc4 {[%clk 0:00:03]} 29. Rh1 {[%clk 0:01:26]}  Bxe2 {[%clk 0:00:03]} 30. Kxe2 {[%clk 0:01:27]}  exf5 {[%clk 0:00:03]} 31. exf5 {[%clk 0:01:27]}  Re8 {[%clk 0:00:04]} 32. Kf2 {[%clk 0:01:25]}  Nc4 {[%clk 0:00:04]} 33. Rd3 {[%clk 0:01:25]}  g6 {[%clk 0:00:04]} 34. fxg6 {[%clk 0:01:24]}  hxg6 {[%clk 0:00:05]} 35. Re1 {[%clk 0:01:23]}  Rb8 {[%clk 0:00:04]} 36. Re4 {[%clk 0:01:21]}  Nb2 {[%clk 0:00:03]} 37. Rd6 {[%clk 0:01:19]}  a5 {[%clk 0:00:02]} 38. bxa5 {[%clk 0:01:18]}  Ra8 {[%clk 0:00:03]} 39. a6 {[%clk 0:01:17]}  Kg7 {[%clk 0:00:02]} 40. Rb4 {[%clk 0:01:16]}  Nd3+ {[%clk 0:00:01]} 41. Rxd3 {[%clk 0:01:16]}  Rxa6 {[%clk 0:00:00]} 42. a4 {[%clk 0:01:16]} 1-0

[Event "November 21 Late 2023"]
[Site "https://www.chess.com"]
[Date "2023.11.21"]
[Round "1"]
[White "Vadim_Galchenko"]
[Black "Eljanov, Pavel"]
[Result "0-1"]
[Board "48"]
[TimeControl "180+1"]
[BlackFideId "14102951"]
[WhiteElo "2440"]
[BlackElo "2598"]
[BlackTeam "UKR"]
[WhiteClock "0:00:00"]
[BlackClock "0:00:22"]

1. e4 {[%clk 0:03:00]}  c6 {[%clk 0:02:59]} 2. c4 {[%clk 0:03:00]}  d5 {[%clk 0:03:00]} 3. exd5 {[%clk 0:03:01]}  cxd5 {[%clk 0:03:00]} 4. cxd5 {[%clk 0:03:02]}  Nf6 {[%clk 0:03:01]} 5. Bb5+ {[%clk 0:03:02]}  Nbd7 {[%clk 0:03:00]} 6. Nc3 {[%clk 0:03:01]}  g6 {[%clk 0:02:59]} 7. Nf3 {[%clk 0:03:01]}  Bg7 {[%clk 0:02:59]} 8. d6 {[%clk 0:03:01]}  a6 {[%clk 0:02:48]} 9. dxe7 {[%clk 0:02:57]}  Qxe7+ {[%clk 0:02:48]} 10. Be2 {[%clk 0:02:57]}  O-O {[%clk 0:02:44]} 11. O-O {[%clk 0:02:57]}  b5 {[%clk 0:02:45]} 12. d4 {[%clk 0:02:55]}  Bb7 {[%clk 0:02:45]} 13. h3 {[%clk 0:02:54]}  Nb6 {[%clk 0:02:33]} 14. Re1 {[%clk 0:02:47]}  Qd6 {[%clk 0:02:33]} 15. Bg5 {[%clk 0:02:17]}  Rfe8 {[%clk 0:02:23]} 16. Ne5 {[%clk 0:01:47]}  b4 {[%clk 0:02:09]} 17. Qb3 {[%clk 0:01:25]}  Re7 {[%clk 0:01:30]} 18. Na4 {[%clk 0:00:46]}  Nxa4 {[%clk 0:01:29]} 19. Qxa4 {[%clk 0:00:47]}  Qxd4 {[%clk 0:01:29]} 20. Nf3 {[%clk 0:00:45]}  Qxb2 {[%clk 0:01:27]} 21. Rab1 {[%clk 0:00:44]}  Qa3 {[%clk 0:01:18]} 22. Qxa3 {[%clk 0:00:39]}  bxa3 {[%clk 0:01:18]} 23. Bc4 {[%clk 0:00:27]}  Rxe1+ {[%clk 0:01:14]} 24. Nxe1 {[%clk 0:00:27]}  Bd5 {[%clk 0:01:12]} 25. Bxd5 {[%clk 0:00:19]}  Nxd5 {[%clk 0:01:12]} 26. Rb3 {[%clk 0:00:20]}  Bf8 {[%clk 0:01:10]} 27. Bc1 {[%clk 0:00:18]}  Rc8 {[%clk 0:00:57]} 28. Bxa3 {[%clk 0:00:18]}  Bxa3 {[%clk 0:00:58]} 29. Rxa3 {[%clk 0:00:19]}  Rc1 {[%clk 0:00:58]} 30. Kf1 {[%clk 0:00:20]}  Nb4 {[%clk 0:00:58]} 31. Rb3 {[%clk 0:00:07]}  Nc2 {[%clk 0:00:52]} 32. Rb8+ {[%clk 0:00:07]}  Kg7 {[%clk 0:00:53]} 33. Re8 {[%clk 0:00:07]}  Ra1 {[%clk 0:00:52]} 34. g4 {[%clk 0:00:07]}  Kf6 {[%clk 0:00:47]} 35. h4 {[%clk 0:00:06]}  h5 {[%clk 0:00:45]} 36. f3 {[%clk 0:00:06]}  Nxe1 {[%clk 0:00:39]} 37. Rxe1 {[%clk 0:00:05]}  Rxa2 {[%clk 0:00:39]} 38. Rb1 {[%clk 0:00:03]}  a5 {[%clk 0:00:38]} 39. Rb5 {[%clk 0:00:03]}  hxg4 {[%clk 0:00:33]} 40. fxg4 {[%clk 0:00:04]}  a4 {[%clk 0:00:34]} 41. h5 {[%clk 0:00:04]}  a3 {[%clk 0:00:24]} 42. Ra5 {[%clk 0:00:03]}  gxh5 {[%clk 0:00:23]} 43. gxh5 {[%clk 0:00:04]}  Kg7 {[%clk 0:00:23]} 44. Kg1 {[%clk 0:00:04]}  Ra1+ {[%clk 0:00:21]} 45. Kg2 {[%clk 0:00:04]}  a2 {[%clk 0:00:22]} 46. Kh2 {[%clk 0:00:03]}  f5 {[%clk 0:00:22]} 47. Kg2 {[%clk 0:00:00]}  f4 {[%clk 0:00:22]} 0-1

[Event "November 21 Late 2023"]
[Site "https://www.chess.com"]
[Date "2023.11.21"]
[Round "1"]
[White "Bazeev, German"]
[Black "szachmistrz2500"]
[Result "1-0"]
[Board "49"]
[TimeControl "180+1"]
[WhiteFideId "24119350"]
[WhiteElo "2418"]
[BlackElo "2440"]
[WhiteTeam "RUS"]
[WhiteClock "0:01:15"]
[BlackClock "0:00:27"]

1. c4 {[%clk 0:02:50]}  c5 {[%clk 0:02:58]} 2. Nc3 {[%clk 0:02:50]}  g6 {[%clk 0:02:58]} 3. g3 {[%clk 0:02:51]}  Bg7 {[%clk 0:02:59]} 4. Bg2 {[%clk 0:02:51]}  Nc6 {[%clk 0:02:59]} 5. a3 {[%clk 0:02:51]}  e5 {[%clk 0:02:58]} 6. d3 {[%clk 0:02:51]}  Nge7 {[%clk 0:02:58]} 7. h4 {[%clk 0:02:50]}  h5 {[%clk 0:02:57]} 8. Nh3 {[%clk 0:02:50]}  a6 {[%clk 0:02:55]} 9. Ng5 {[%clk 0:02:50]}  Rb8 {[%clk 0:02:54]} 10. O-O {[%clk 0:02:43]}  b5 {[%clk 0:02:54]} 11. b4 {[%clk 0:02:39]}  d6 {[%clk 0:02:50]} 12. bxc5 {[%clk 0:02:34]}  dxc5 {[%clk 0:02:50]} 13. Nge4 {[%clk 0:02:25]}  O-O {[%clk 0:02:20]} 14. Rb1 {[%clk 0:02:25]}  b4 {[%clk 0:02:15]} 15. Na4 {[%clk 0:02:22]}  Nd4 {[%clk 0:02:05]} 16. Nexc5 {[%clk 0:02:17]}  Bg4 {[%clk 0:02:01]} 17. f3 {[%clk 0:02:13]}  Bd7 {[%clk 0:01:57]} 18. e3 {[%clk 0:01:59]}  Ndc6 {[%clk 0:01:47]} 19. axb4 {[%clk 0:01:57]}  Rxb4 {[%clk 0:01:46]} 20. Ba3 {[%clk 0:01:50]}  Rxb1 {[%clk 0:01:38]} 21. Qxb1 {[%clk 0:01:51]}  Nf5 {[%clk 0:01:34]} 22. Ne4 {[%clk 0:01:48]}  Nxe3 {[%clk 0:01:30]} 23. Bxf8 {[%clk 0:01:41]}  Bxf8 {[%clk 0:01:23]} 24. Re1 {[%clk 0:01:37]}  Nf5 {[%clk 0:01:22]} 25. Qb7 {[%clk 0:01:35]}  Kg7 {[%clk 0:01:02]} 26. Nb6 {[%clk 0:01:32]}  Be8 {[%clk 0:01:01]} 27. Nd5 {[%clk 0:01:29]}  Ncd4 {[%clk 0:00:53]} 28. Qc7 {[%clk 0:01:23]}  Qa8 {[%clk 0:00:36]} 29. Qxe5+ {[%clk 0:01:22]}  Kg8 {[%clk 0:00:33]} 30. Nef6+ {[%clk 0:01:21]}  Kh8 {[%clk 0:00:33]} 31. Nxe8+ {[%clk 0:01:21]}  Kh7 {[%clk 0:00:32]} 32. Nef6+ {[%clk 0:01:21]}  Kh8 {[%clk 0:00:31]} 33. Nxh5+ {[%clk 0:01:17]}  Kh7 {[%clk 0:00:31]} 34. Nhf6+ {[%clk 0:01:18]}  Kh8 {[%clk 0:00:31]} 35. Nd7+ {[%clk 0:01:15]}  Bg7 {[%clk 0:00:31]} 36. Qe8+ {[%clk 0:01:14]}  Qxe8 {[%clk 0:00:30]} 37. Rxe8+ {[%clk 0:01:15]}  Kh7 {[%clk 0:00:30]} 38. N7f6+ {[%clk 0:01:15]}  Bxf6 {[%clk 0:00:29]} 39. Nxf6+ {[%clk 0:01:16]}  Kg7 {[%clk 0:00:30]} 40. Ne4 {[%clk 0:01:16]}  Ne2+ {[%clk 0:00:27]} 41. Kf2 {[%clk 0:01:15]} 1-0

[Event "November 21 Late 2023"]
[Site "https://www.chess.com"]
[Date "2023.11.21"]
[Round "1"]
[White "Khamrakulov, Djurabek"]
[Black "Kaplan, Avi Harrison"]
[Result "1-0"]
[Board "51"]
[TimeControl "180+1"]
[WhiteFideId "14201143"]
[BlackFideId "30934559"]
[WhiteElo "2535"]
[BlackElo "2082"]
[WhiteTeam "UZB"]
[BlackTeam "USA"]
[WhiteClock "0:00:20"]
[BlackClock "0:00:00"]

1. d4 {[%clk 0:03:00]}  Nf6 {[%clk 0:02:50]} 2. Nf3 {[%clk 0:02:58]}  d5 {[%clk 0:02:48]} 3. c4 {[%clk 0:02:57]}  e6 {[%clk 0:02:47]} 4. g3 {[%clk 0:02:56]}  Bb4+ {[%clk 0:02:38]} 5. Bd2 {[%clk 0:02:52]}  Be7 {[%clk 0:02:38]} 6. Bg2 {[%clk 0:02:52]}  O-O {[%clk 0:02:39]} 7. O-O {[%clk 0:02:51]}  c6 {[%clk 0:02:39]} 8. Qc2 {[%clk 0:02:50]}  Nbd7 {[%clk 0:02:39]} 9. b3 {[%clk 0:02:49]}  b6 {[%clk 0:02:39]} 10. Nc3 {[%clk 0:02:48]}  Bb7 {[%clk 0:02:38]} 11. Rfd1 {[%clk 0:02:48]}  Rc8 {[%clk 0:02:36]} 12. e4 {[%clk 0:02:46]}  dxe4 {[%clk 0:02:35]} 13. Nxe4 {[%clk 0:02:46]}  Nxe4 {[%clk 0:02:35]} 14. Qxe4 {[%clk 0:02:45]}  Nf6 {[%clk 0:02:35]} 15. Qe2 {[%clk 0:02:45]}  c5 {[%clk 0:02:35]} 16. Bc3 {[%clk 0:02:39]}  Qc7 {[%clk 0:02:28]} 17. dxc5 {[%clk 0:02:32]}  Qxc5 {[%clk 0:02:26]} 18. a4 {[%clk 0:02:28]}  a5 {[%clk 0:02:24]} 19. Bd4 {[%clk 0:02:16]}  Qc7 {[%clk 0:02:23]} 20. Be5 {[%clk 0:02:05]}  Qc5 {[%clk 0:02:17]} 21. Qb2 {[%clk 0:02:02]}  Rfd8 {[%clk 0:02:16]} 22. h3 {[%clk 0:01:57]}  h6 {[%clk 0:02:12]} 23. Kh2 {[%clk 0:01:56]}  Kh7 {[%clk 0:02:11]} 24. Bd4 {[%clk 0:01:53]}  Qc7 {[%clk 0:02:11]} 25. Ne5 {[%clk 0:01:52]}  Bd6 {[%clk 0:01:59]} 26. Nf3 {[%clk 0:01:29]}  Be7 {[%clk 0:01:57]} 27. Rd3 {[%clk 0:01:29]}  Be4 {[%clk 0:01:53]} 28. Rd2 {[%clk 0:01:28]}  Rd7 {[%clk 0:01:48]} 29. Rad1 {[%clk 0:01:19]}  Bb4 {[%clk 0:01:32]} 30. Be5 {[%clk 0:01:08]}  Rxd2 {[%clk 0:01:12]} 31. Nxd2 {[%clk 0:01:08]}  Qc6 {[%clk 0:00:58]} 32. Nxe4 {[%clk 0:01:04]}  Nxe4 {[%clk 0:00:55]} 33. Qc2 {[%clk 0:01:01]}  f5 {[%clk 0:00:52]} 34. Bxe4 {[%clk 0:01:01]}  fxe4 {[%clk 0:00:49]} 35. Rd4 {[%clk 0:00:56]}  Rf8 {[%clk 0:00:46]} 36. Bf4 {[%clk 0:00:55]}  g5 {[%clk 0:00:29]} 37. Rxe4 {[%clk 0:00:52]}  Kg8 {[%clk 0:00:28]} 38. Be3 {[%clk 0:00:51]}  Bc5 {[%clk 0:00:28]} 39. Re5 {[%clk 0:00:50]}  Rf6 {[%clk 0:00:22]} 40. Bxc5 {[%clk 0:00:48]}  bxc5 {[%clk 0:00:23]} 41. Qe2 {[%clk 0:00:43]}  Qd6 {[%clk 0:00:22]} 42. Kg2 {[%clk 0:00:41]}  Kf7 {[%clk 0:00:21]} 43. Re3 {[%clk 0:00:36]}  Qc6+ {[%clk 0:00:22]} 44. Kg1 {[%clk 0:00:35]}  Kg6 {[%clk 0:00:19]} 45. Qd3+ {[%clk 0:00:35]}  Kg7 {[%clk 0:00:19]} 46. Re5 {[%clk 0:00:35]}  Qc7 {[%clk 0:00:17]} 47. Qe4 {[%clk 0:00:34]}  Qd6 {[%clk 0:00:17]} 48. Kg2 {[%clk 0:00:32]}  Qd2 {[%clk 0:00:16]} 49. Qe3 {[%clk 0:00:32]}  Qd6 {[%clk 0:00:16]} 50. Qxc5 {[%clk 0:00:31]}  Qd3 {[%clk 0:00:16]} 51. Qe3 {[%clk 0:00:30]}  Qd1 {[%clk 0:00:14]} 52. Rxe6 {[%clk 0:00:30]}  Rxe6 {[%clk 0:00:09]} 53. Qxe6 {[%clk 0:00:30]}  Qxb3 {[%clk 0:00:10]} 54. Qd7+ {[%clk 0:00:28]}  Kg6 {[%clk 0:00:09]} 55. c5 {[%clk 0:00:28]}  Qc4 {[%clk 0:00:06]} 56. c6 {[%clk 0:00:25]}  Qe4+ {[%clk 0:00:07]} 57. Kh2 {[%clk 0:00:25]}  Qf3 {[%clk 0:00:06]} 58. Kg1 {[%clk 0:00:25]}  g4 {[%clk 0:00:02]} 59. hxg4 {[%clk 0:00:24]}  Qa3 {[%clk 0:00:01]} 60. c7 {[%clk 0:00:23]}  Qc1+ {[%clk 0:00:01]} 61. Kg2 {[%clk 0:00:23]}  Qc2 {[%clk 0:00:01]} 62. c8=Q {[%clk 0:00:22]}  Qe4+ {[%clk 0:00:01]} 63. Kh2 {[%clk 0:00:21]}  Qe2 {[%clk 0:00:00]} 64. Qg8+ {[%clk 0:00:20]} 1-0

[Event "November 21 Late 2023"]
[Site "https://www.chess.com"]
[Date "2023.11.21"]
[Round "1"]
[White "Szpar, Milosz"]
[Black "Batsiashvili, Nino"]
[Result "1-0"]
[Board "53"]
[TimeControl "180+1"]
[WhiteFideId "1184989"]
[BlackFideId "13602993"]
[WhiteElo "2446"]
[BlackElo "2233"]
[WhiteTeam "POL"]
[BlackTeam "GEO"]
[WhiteClock "0:00:48"]
[BlackClock "0:01:09"]

1. Nf3 {[%clk 0:03:00]}  d5 {[%clk 0:02:59]} 2. e3 {[%clk 0:03:00]}  c5 {[%clk 0:02:59]} 3. c4 {[%clk 0:03:00]}  e6 {[%clk 0:02:57]} 4. d4 {[%clk 0:02:57]}  Nc6 {[%clk 0:02:53]} 5. Nc3 {[%clk 0:02:56]}  Nf6 {[%clk 0:02:53]} 6. a3 {[%clk 0:02:55]}  a6 {[%clk 0:02:46]} 7. dxc5 {[%clk 0:02:56]}  Bxc5 {[%clk 0:02:46]} 8. b4 {[%clk 0:02:56]}  Ba7 {[%clk 0:02:46]} 9. Bb2 {[%clk 0:02:53]}  O-O {[%clk 0:02:44]} 10. Be2 {[%clk 0:02:50]}  dxc4 {[%clk 0:02:44]} 11. Bxc4 {[%clk 0:02:48]}  b5 {[%clk 0:02:44]} 12. Bd3 {[%clk 0:02:46]}  Bb7 {[%clk 0:02:44]} 13. O-O {[%clk 0:02:45]}  Qe7 {[%clk 0:02:37]} 14. Qe2 {[%clk 0:02:45]}  Rfd8 {[%clk 0:02:37]} 15. Rfd1 {[%clk 0:02:36]}  Rd7 {[%clk 0:02:36]} 16. Ne4 {[%clk 0:02:30]}  Nxe4 {[%clk 0:02:34]} 17. Bxe4 {[%clk 0:02:31]}  Rad8 {[%clk 0:02:31]} 18. Rdc1 {[%clk 0:02:28]}  Nb8 {[%clk 0:02:09]} 19. Bc2 {[%clk 0:02:02]}  Bd5 {[%clk 0:01:55]} 20. Ne5 {[%clk 0:01:59]}  Rc7 {[%clk 0:01:49]} 21. Qh5 {[%clk 0:01:32]}  f5 {[%clk 0:01:48]} 22. g4 {[%clk 0:01:25]}  Be4 {[%clk 0:01:40]} 23. Bb3 {[%clk 0:01:21]}  Bd5 {[%clk 0:01:19]} 24. Bxd5 {[%clk 0:01:16]}  Rxc1+ {[%clk 0:01:14]} 25. Rxc1 {[%clk 0:01:16]}  Rxd5 {[%clk 0:01:14]} 26. Rc8+ {[%clk 0:01:11]}  Rd8 {[%clk 0:01:13]} 27. Rxd8+ {[%clk 0:01:02]}  Qxd8 {[%clk 0:01:14]} 28. Qf7+ {[%clk 0:01:02]}  Kh8 {[%clk 0:01:15]} 29. Qxa7 {[%clk 0:00:57]}  Nc6 {[%clk 0:01:10]} 30. Qxg7+ {[%clk 0:00:49]}  Kxg7 {[%clk 0:01:09]} 31. Nxc6+ {[%clk 0:00:49]}  Qf6 {[%clk 0:01:10]} 32. Bxf6+ {[%clk 0:00:48]}  Kxf6 {[%clk 0:01:09]} 1-0